Cogmind - Beta 15 @@@ ROGUE MODE // 2025.07.01 @ 04:29:45 Player: pyroperro Result: Destroyed by B-99 Colossus with Multirail Performance ------------- Evolutions (9) 4500 Regions Visited (20) 4000 Robots Destroyed (151) 755 Value Destroyed (4248) 4248 Prototype IDs (44) 880 Alien Tech Used (0) 0 Bonus (1798) 1798 TOTAL SCORE: 16181 Bonus ------- High Alert Combat Kills 251 Follower Combat Kills 104 Entered Garrisons 200 Aligned with FarCom 300 Met Warlord at Base 500 MAIN.C Attacked Warlord 500 Friendly Fire -57 Cogmind --------- Core Integrity 0/1600 Matter 113/300 Energy 27/100 System Corruption 2% Temperature Cool (0) Movement Core (200) Ox3 Location -1/Access Parts ------- > --- POWER (2) -------- (None) > --- PROPULSION (6) --- (None) > --- UTILITY (14) ----- 0b10 Decoder Chip [Scout] Hacking Suite Advanced Hacking Suite > --- WEAPON (3) ------- Gamma Bomb Array > --- INVENTORY (5) ---- (None) Peak State ------------ > --- POWER ------------ Light Neutrino Core Light Antimatter Reactor > --- PROPULSION ------- Improved Cesium-ion Thruster Improved Cesium-ion Thruster Field Propulsion Drive Diametric Drive Electron Diverter Improved Diametric Drive > --- UTILITY ---------- 0b10 Decoder Chip [Scout] Improved Reaction Control System Experimental Core Shielding Improved Weapon Shielding Advanced Shield Generator Hacking Suite Hacking Suite Hacking Suite Hacking Suite Advanced Hacking Suite System Shield Improved System Shield > --- WEAPON ----------- Gamma Bomb Array Chainsword Great Axe > --- INVENTORY -------- Micro Nuclear Core Electron Diverter Gamma Bomb Array Heavy Missile Launcher [Rating: 128] Favorites ----------- Power Ion Engine Engine Ion Engine Power Core Light Neutrino Core Reactor Light Antimatter Reactor Propulsion Improved Cesium-ion Thruster Treads Light Treads Leg Aluminum Leg Wheel Compact Wheel Flight Unit Improved Cesium-ion Thruster Utility Hacking Suite Device Advanced Shield Generator Storage Large Storage Unit Processor Improved Terrain Scan Processor Hackware Hacking Suite Protection Core Shielding Weapon Katana Energy Gun Small Laser Energy Cannon Advanced Beam Cannon Ballistic Gun Light Assault Rifle Ballistic Cannon Improved Light Cannon Launcher Rocket Launcher Special Weapon Mining Laser Impact Weapon Hammer Slashing Weapon Katana Build | -11 -10 -10 -9 -9 -9 -8 -8 -7 -7 -7 -7 -5 -5 -5 -5 -4 -4 -3 -2 -1 ------- Run | Yrd Mat Min Mat Min Exi Min Mat Fac Sto Gar Rec Fac Upp Upp War Pro Fac Res Res Acc Slots Evolved 18 | . . . 2 . . . 2 2 . . . 4 . . . . 2 2 2 2 Power 1 | . . . . . . . . . . . . . . . . . . 1 . . Propulsion 4 | . . . 1 . . . . 1 . . . 1 . . . . 1 . . . Utility 12 | . . . 1 . . . 2 1 . . . 2 . . . . 1 1 2 2 Weapon 1 | . . . . . . . . . . . . 1 . . . . . . . . Parts Attached 114 | 7 18 1 22 1 1 . 17 9 3 2 2 4 4 . 3 1 3 3 7 6 Power 10 | 1 2 . . . . . 2 . 1 1 . 1 . . . . . . 1 1 Engine 3 | 1 2 . . . . . . . . . . . . . . . . . . . Core 5 | . . . . . . . 2 . 1 1 . 1 . . . . . . . . Reactor 2 | . . . . . . . . . . . . . . . . . . . 1 1 Propulsion 34 | 2 7 . 7 . . . 5 5 1 1 . 2 . . . . . 2 2 . Treads 13 | 2 2 . 7 . . . 2 . . . . . . . . . . . . . Leg 3 | . 3 . . . . . . . . . . . . . . . . . . . Wheel 2 | . 2 . . . . . . . . . . . . . . . . . . . Hover . | . . . . . . . . . . . . . . . . . . . . . Flight 16 | . . . . . . . 3 5 1 1 . 2 . . . . . 2 2 . Utility 34 | 2 4 . 4 . . . 7 3 . . 2 . 3 . 1 . 2 1 3 2 Device 5 | 1 . . . . . . . . . . . . 1 . . . 1 . 1 1 Storage 5 | 1 2 . 1 . . . . . . . 1 . . . . . . . . . Processor 2 | . . . . . . . 1 . . . . . . . 1 . . . . . Hackware 10 | . . . . . . . 2 3 . . 1 . 1 . . . 1 . 2 . Protection 12 | . 2 . 3 . . . 4 . . . . . 1 . . . . 1 . 1 Artifact . | . . . . . . . . . . . . . . . . . . . . . Weapon 36 | 2 5 1 11 1 1 . 3 1 1 . . 1 1 . 2 1 1 . 1 3 Energy Gun 7 | 1 3 . 3 . . . . . . . . . . . . . . . . . Energy Cannon 3 | . . . 2 . . . . . . . . . . . 1 . . . . . Ballistic Gun 5 | 1 1 . 1 1 . . 1 . . . . . . . . . . . . . Ballistic Cannon 1 | . . . 1 . . . . . . . . . . . . . . . . . Launcher 11 | . 1 . 2 . . . 2 . 1 . . . . . 1 1 . . . 3 Special Weapon 2 | . . . 2 . . . . . . . . . . . . . . . . . Impact Weapon 2 | . . 1 . . . . . . . . . . 1 . . . . . . . Slashing Weapon 5 | . . . . . 1 . . 1 . . . 1 . . . . 1 . 1 . Piercing Weapon . | . . . . . . . . . . . . . . . . . . . . . Special Melee Weapon . | . . . . . . . . . . . . . . . . . . . . . Unidentified Prototypes 14 | . . . 2 . . . 2 1 1 . . 1 . . 2 . . 2 3 . Corrupted Parts 1 | . . . . . . . . . . . 1 . . . . . . . . . System Corruption 3 | . . . . . . . . . . . 3 . . . . . . . . . Parts Lost 49 | . 8 1 1 . . . 10 . . 4 . 1 . . . . . . . 24 Power 6 | . 1 . . . . . 1 . . 1 . . . . . . . . . 3 Propulsion 13 | . 2 . . . . . 3 . . 1 . . . . . . . . . 7 Utility 16 | . 1 . . . . . 3 . . . . 1 . . . . . . . 11 Weapon 14 | . 4 1 1 . . . 3 . . 2 . . . . . . . . . 3 Highest Loss Streak 18 | . 7 1 1 . . . 9 . . 3 . 1 . . . . . . . 18 To Critical Strikes 1 | . . . . . . . . . . . . . . . . . . . . 1 Average Backups 9 | 2 5 8 13 13 12 11 14 4 4 4 4 7 8 8 5 4 4 4 5 4 Power . | . . 1 1 1 1 1 . . 1 1 1 1 1 1 1 1 1 . . . Propulsion 2 | . 1 1 5 3 2 2 4 1 2 2 1 . 1 1 1 1 . . 1 . Utility 2 | . 1 4 3 4 3 3 4 . . . 1 5 5 5 . . . . . . Weapon 3 | . 2 2 3 5 5 5 5 2 1 . . 1 1 1 2 2 3 4 3 2 Tool/Special . | . . . . . . . . . . . . . . . . . . . . . Unused Backups 19 | . . . 2 2 . . 7 . 1 . . . . . 5 . 1 . . 1 Power 3 | . . . . 1 . . 2 . . . . . . . . . . . . . Propulsion 5 | . . . . 1 . . 3 . 1 . . . . . . . . . . . Utility 5 | . . . . . . . . . . . . . . . 5 . . . . . Weapon 5 | . . . 1 . . . 2 . . . . . . . . . 1 . . 1 Tool/Special 1 | . . . 1 . . . . . . . . . . . . . . . . . Average Slot Usage (%) 91 | . 97 100 96 99 81 88 92 83 97 99 92 74 87 94 94 94 85 88 90 74 Engine 4 | . 13 14 10 11 11 11 . . . . . . . . . . . . . . Core 4 | . . . . . . . 8 7 6 7 7 5 5 5 5 5 5 9 5 3 Treads 16 | . 20 28 31 33 33 33 26 . . . . . . . . . . . . . Flight 11 | . . . . . . . . 29 29 30 30 29 29 29 29 29 30 28 26 20 Device 1 | . 1 . . . . . . . . . . . 3 5 5 5 5 3 4 5 Storage 7 | . 14 14 12 22 11 11 9 . . . 5 5 5 5 . . . . . . Processor 3 | . . . . . . . 5 7 7 7 1 . . . 4 5 5 4 4 4 Hackware 12 | . . . . . . . . 29 38 38 38 27 27 29 29 29 27 28 31 24 Protection 13 | . 12 14 20 11 21 22 25 . . . . . 2 5 5 5 5 8 8 6 Energy Gun 2 | . 13 13 . 6 . . . . . . . . . . . . . . . . Energy Cannon 1 | . . . 11 . . . . . . . . . . . . . . . . . Ballistic Gun 2 | . 13 1 . 15 . . 1 . . . . . . . . . . . . . Launcher 1 | . . . . . . . 5 . 5 10 . . . . . 3 . . . . Slashing Weapon 4 | . . . . . 4 11 8 6 6 3 7 5 10 11 11 7 5 4 6 5 Peak Build Rating 128 | 7 8 8 15 14 17 18 36 45 48 48 47 56 74 71 89 77 79 100 123 128 Average Rating 39 | 5 7 7 12 13 12 17 28 41 47 47 44 53 66 71 73 74 76 94 111 104 On Entrance 44 | . 7 8 8 14 13 17 17 22 45 48 45 46 56 71 71 74 74 79 96 119 Naked Turns . | . . . . . . . . . . . . . . . . . . . . . Heaviest Build 49 | 12 28 29 43 42 32 32 46 7 9 9 13 19 31 31 31 29 23 30 39 49 Greatest Support 62 | 40 40 40 60 60 60 60 62 24 24 24 24 31 31 31 31 31 37 41 41 42 Greatest Overweight (x) 8 | . 2 . 1 . . . 8 . . . . . . . . . . . . 1 Average Overweight (x) . | . . . . . . . . . . . . . . . . . . . . . Largest Inventory Capacity 15 | 8 15 15 15 15 15 15 15 5 5 5 8 8 8 8 8 5 5 5 5 5 Average Capacity 10 | 7 9 15 15 15 15 15 14 5 5 5 7 8 8 8 5 5 5 5 5 5 Most Carried 15 | 3 9 9 15 14 13 12 15 5 5 5 8 8 8 8 8 5 5 5 5 5 Average Carried 9 | 2 5 8 13 13 11 11 14 4 4 4 4 7 8 8 5 4 4 4 4 4 Final Capacity 15 | 8 15 15 15 15 15 15 5 5 5 5 8 8 8 8 5 5 5 5 5 5 Final Carried 14 | 3 9 9 14 13 12 12 5 5 5 2 8 8 8 8 5 5 5 5 5 . Class Distribution -------------------- 33% | Mutant 27% | Hacker-Sprinter 26% | Scavenger-Mutant 12% | Wizard-Sprinter Dominant Class ---------------- Mutant | -10/Materials Mutant | -10/Mines Scavenger-Mutant | -9/Materials Mutant | -9/Mines Scavenger-Mutant | -9/Exiles Scavenger-Mutant | -8/Mines Mutant | -8/Materials Hacker-Sprinter | -7/Factory Hacker-Sprinter | -7/Storage Hacker-Sprinter | -7/Garrison Hacker-Sprinter | -7/Recycling Hacker-Sprinter | -5/Factory Hacker-Sprinter | -5/Upper Caves Hacker-Sprinter | -5/Upper Caves Hacker-Sprinter | -5/Warlord Hacker-Sprinter | -4/Proximity Caves Hacker-Sprinter | -4/Factory Wizard-Sprinter | -3/Research Wizard-Sprinter | -2/Research Wizard-Sprinter | -1/Access Resources | -11 -10 -10 -9 -9 -9 -8 -8 -7 -7 -7 -7 -5 -5 -5 -5 -4 -4 -3 -2 -1 ----------- Run | Yrd Mat Min Mat Min Exi Min Mat Fac Sto Gar Rec Fac Upp Upp War Pro Fac Res Res Acc Matter Collected 2609 | 273 244 58 369 93 . 55 473 40 81 150 231 . 111 . . 86 30 . 284 31 Remotely 100 | 98 2 . . . . . . . . . . . . . . . . . . . Salvage Created 3994 | 92 601 24 851 69 . 23 1057 40 209 42 242 17 . . . . . . 124 603 Parts 274 | 2 50 3 68 9 . 3 61 . 11 4 4 3 . . . . . . 6 50 Haulers Intercepted 6 | . 2 . 3 . . . . 1 . . . . . . . . . . . . Recyclers Shooed 2 | . . . . . . . 1 . 1 . . . . . . . . . . . Parts Field Recycled . | . . . . . . . . . . . . . . . . . . . . . Retrieved Matter . | . . . . . . . . . . . . . . . . . . . . . Parts Self-Destructed . | . . . . . . . . . . . . . . . . . . . . . Prevented . | . . . . . . . . . . . . . . . . . . . . . Kills | -11 -10 -10 -9 -9 -9 -8 -8 -7 -7 -7 -7 -5 -5 -5 -5 -4 -4 -3 -2 -1 ------- Run | Yrd Mat Min Mat Min Exi Min Mat Fac Sto Gar Rec Fac Upp Upp War Pro Fac Res Res Acc Combat Hostiles Destroyed 101 | . 16 3 21 5 . 3 32 . 3 3 . . . . . . . . . 15 Melee 8 | . . . . . . . 8 . . . . . . . . . . . . . Guns 16 | . 10 1 . 5 . . . . . . . . . . . . . . . . Cannons 14 | . . . 14 . . . . . . . . . . . . . . . . . AOE 61 | . 5 2 6 . . 3 24 . 3 3 . . . . . . . . . 15 Classes Destroyed 13 | 1 8 . 1 . . . 2 . . 1 . . . . . . . . . . Worker 11 | . 2 . . . . . 3 . 1 . . . . . . . . . 3 2 Builder 11 | . 1 . 2 . . . 2 . 1 . . 1 . . . . . . . 4 Hauler 6 | . 2 . 3 . . . . 1 . . . . . . . . . . . . Recycler 4 | 1 . . . . . . 2 . 1 . . . . . . . . . . . Mechanic 3 | . 1 . . . . . 1 . 1 . . . . . . . . . . . Operator 6 | . 2 . 2 . . . 2 . . . . . . . . . . . . . Watcher 9 | . 1 . 2 . . . 3 . . . . . . . . . . . 1 2 Swarmer 46 | . 7 3 4 5 . 3 9 . . . . . . . . . . . . 15 Grunt 42 | . 9 . 12 . . . 16 . 3 2 . . . . . . . . . . Brawler 1 | . . . . . . . . . . 1 . . . . . . . . . . Sentry 9 | . . . 5 . . . 4 . . . . . . . . . . . . . Specialist 2 | . . . . . . . 2 . . . . . . . . . . . . . Heavy 1 | . . . . . . . 1 . . . . . . . . . . . . . Best Kill Streak 12 | 1 10 3 5 3 . 3 12 1 5 3 . 1 . . . . . . 3 11 Combat Bots Only 10 | . 6 3 4 3 . 3 8 . 2 3 . . . . . . . . . 10 Max Kills in Single Turn 6 | 1 2 1 4 1 . 3 3 1 2 2 . 1 . . . . . . 1 6 Gunslinging . | . . . . . . . . . . . . . . . . . . . . . Exploded 5 | . 2 1 2 . . 3 3 . 2 2 . . . . . . . . . 5 Melee 1 | . . . . . . . 1 . . . . . . . . . . . . . Uniques/NPCs Destroyed . | . . . . . . . . . . . . . . . . . . . . . Combat | -11 -10 -10 -9 -9 -9 -8 -8 -7 -7 -7 -7 -5 -5 -5 -5 -4 -4 -3 -2 -1 -------- Run | Yrd Mat Min Mat Min Exi Min Mat Fac Sto Gar Rec Fac Upp Upp War Pro Fac Res Res Acc Hostile Shots Fired 660 | . 83 14 78 14 . 3 105 3 . 49 . 15 4 . . 19 4 12 9 248 Missed 245 | . 19 2 20 3 . 1 32 1 . 26 . 9 . . . 14 3 11 6 98 Hits 415 | . 64 12 58 11 . 2 73 2 . 23 . 6 4 . . 5 1 1 3 150 Projectile 415 | . 64 12 58 11 . 2 73 2 . 23 . 6 4 . . 5 1 1 3 150 Critical Strikes 16 | . 1 . 2 . . . 7 . . . . . 1 . . . . . . 5 Actively Blocked 3 | . . . . . . . 1 . . . . . . . . . . . . 2 Damage Taken 8051 | . 847 125 693 89 . 42 1959 29 . 414 . 233 62 . . 68 83 16 54 3337 Core 2525 | . 99 14 51 . . . 428 29 . 169 . 93 31 . . . . . . 1611 Absorbed by Shields 279 | . . . . . . . . . . 26 . . 23 . . 24 29 6 20 151 Redirected to Shielding 329 | . 4 3 11 . . . 55 . . . . . . . . . . . . 256 Regen/Repaired (Parts) 251 | . 55 . 84 . . . 66 . . . . . . . . . 12 34 . . Core Remaining (%) 80 | 100 . 54 . . . 87 22 . . . 71 . . . . 87 100 100 100 . Volleys Fired 195 | 3 49 7 72 5 . 1 30 . 3 6 . . . . . 8 . . . 11 Largest 2 | 2 2 2 2 2 . 1 2 . 2 2 . . . . . 1 . . . 2 Hottest 168 | 60 80 50 168 68 . 33 66 . 60 60 . . . . . 39 . . . 119 Shots Fired 302 | 6 91 10 110 11 . 1 38 . 4 10 . . . . . 8 . . . 13 Gun 110 | 6 85 7 . 11 . . 1 . . . . . . . . . . . . . Cannon 91 | . . . 91 . . . . . . . . . . . . . . . . . Launcher 87 | . 6 3 5 . . 1 37 . 4 10 . . . . . 8 . . . 13 Special 14 | . . . 14 . . . . . . . . . . . . . . . . . Kinetic 66 | 3 41 3 10 8 . . 1 . . . . . . . . . . . . . Thermal 113 | . 14 4 95 . . . . . . . . . . . . . . . . . Explosive 81 | . 6 3 5 . . 1 37 . 4 10 . . . . . 8 . . . 7 Electromagnetic 42 | 3 30 . . 3 . . . . . . . . . . . . . . . 6 Robot Hit Streak 19 | 5 9 4 6 6 . 4 9 . 11 19 . . . . . . . . . 5 Robot Miss Streak 9 | . 3 4 4 1 . . 2 . . . . . . . . . . . . 9 Penetration Max . | . . . . . . . . . . . . . . . . . . . . . Secondary Targets 2 | . 2 . . . . . . . . . . . . . . . . . . . Max Gunslinging Chain 1 | . 1 . . . . . . . . . . . . . . . . . . . Shots Hit Robots 246 | 5 65 3 57 8 . 1 68 3 4 8 5 1 . . . . 1 . 12 5 Core Hits 223 | 1 35 3 28 5 . 3 74 1 10 12 2 1 . . . . . . 3 45 Critical Kills 1 | . . . 1 . . . . . . . . . . . . . . . . . Critical Parts Destroyed . | . . . . . . . . . . . . . . . . . . . . . Critical Strikes 7 | 1 . . 1 . . . 3 . . . . . . . . . . . . 2 Meltdown 1 | . . . 1 . . . . . . . . . . . . . . . . . Corrupt 1 | 1 . . . . . . . . . . . . . . . . . . . . Sever 5 | . . . . . . . 3 . . . . . . . . . . . . 2 Melee Attacks 205 | . . . 1 . . . 61 20 9 5 7 11 . . . 2 16 17 26 30 Impact 1 | . . . 1 . . . . . . . . . . . . . . . . . Slashing 204 | . . . . . . . 61 20 9 5 7 11 . . . 2 16 17 26 30 Piercing . | . . . . . . . . . . . . . . . . . . . . . Sneak Attacks 16 | . . . . . . . 3 2 2 . . 1 . . . . 1 . 7 . Combat Hostiles . | . . . . . . . . . . . . . . . . . . . . . Follow-up Attacks 2 | . . . . . . . . . . . . . . . . . . . 1 1 Damage Inflicted 12736 | 54 1238 143 1751 110 . 157 4538 176 647 607 340 60 . . . . 87 . 771 2057 Guns 859 | 54 669 26 . 110 . . . . . . . . . . . . . . . . Cannons 1165 | . . . 1165 . . . . . . . . . . . . . . . . . Explosions 7202 | . 565 117 536 . . 157 2740 . 516 607 . . . . . . . . . 1964 Melee 3433 | . . . . . . . 1798 176 131 . 340 60 . . . . 87 . 771 70 Ramming 27 | . 4 . . . . . . . . . . . . . . . . . . 23 Kinetic 456 | 14 184 . 188 70 . . . . . . . . . . . . . . . . Thermal 1476 | . 218 26 1027 . . . . . . . . . . . . . . . . 205 Explosive 6050 | . 462 117 536 . . 157 2740 . 516 607 . . . . . . . . . 915 Electromagnetic 1294 | 40 370 . . 40 . . . . . . . . . . . . . . . 844 Impact . | . . . . . . . . . . . . . . . . . . . . . Slashing 3433 | . . . . . . . 1798 176 131 . 340 60 . . . . 87 . 771 70 Piercing . | . . . . . . . . . . . . . . . . . . . . . Highest Corruption 3 | . . . 1 1 1 1 1 . . . 3 . . . . . 1 . . 2 Average Corruption 1 | . . . 1 1 1 1 1 . . . 3 . . . . . 1 . . 1 Corruption Purged . | . . . . . . . . . . . . . . . . . . . . . Corruption Blocked . | . . . . . . . . . . . . . . . . . . . . . Effects 23 | . . . 2 4 4 1 2 . . . 2 . . . . . 8 . . . Message Errors 5 | . . . . 1 2 . . . . . . . . . . . 2 . . . Matter Fused 3 | . . . . . . . . . . . 1 . . . . . 2 . . . Heat Flow Errors 5 | . . . . . . 1 1 . . . 1 . . . . . 2 . . . Energy Discharges 1 | . . . 1 . . . . . . . . . . . . . . . . . Parts Rejected 1 | . . . 1 . . . . . . . . . . . . . . . . . Data Loss (minor) 2 | . . . . 1 1 . . . . . . . . . . . . . . . Data Loss (major) 3 | . . . . . . . 1 . . . . . . . . . 2 . . . Misfires 1 | . . . . 1 . . . . . . . . . . . . . . . . Alerts 2 | . . . . 1 1 . . . . . . . . . . . . . . . Overload Shots . | . . . . . . . . . . . . . . . . . . . . . Overflow Damage 1030 | . 25 27 51 . . . 395 32 51 10 102 . . . . . . . 258 79 Projectiles 18 | . . . 18 . . . . . . . . . . . . . . . . . Explosions 254 | . 25 27 33 . . . 80 . . 10 . . . . . . . . . 79 Melee 758 | . . . . . . . 315 32 51 . 102 . . . . . . . 258 . Knockbacks 1 | . . . 1 . . . . . . . . . . . . . . . . . Impact . | . . . . . . . . . . . . . . . . . . . . . Kinetic 1 | . . . 1 . . . . . . . . . . . . . . . . . Secondary . | . . . . . . . . . . . . . . . . . . . . . Self-Inflicted Damage 1003 | . 224 35 18 . . 24 490 . . . . . . . . . . . . 212 Shots 30 | . 7 1 1 . . 1 13 . . . . . . . . . . . . 7 Rammed 3 | . . . . . . . . . . . . . . . . . . . . 3 Targets Rammed 4 | . 1 . . . . . . . . . . . . . . . . . . 3 Kicked 1 | . 1 . . . . . . . . . . . . . . . . . . . Crushed . | . . . . . . . . . . . . . . . . . . . . . Highest Temperature 450 | 40 226 10 450 . . 256 117 . 3 25 124 7 4 5 . 9 144 25 249 208 Average Temperature 76 | 23 54 7 112 . . 137 47 . 2 8 76 2 3 5 . 8 50 11 56 88 Received Heat Transfer 1073 | . 210 . 273 . . . 360 . . 65 . 36 6 . . . . . 12 111 Effects 7 | . . . 7 . . . . . . . . . . . . . . . . . Energy Bleed 1 | . . . 1 . . . . . . . . . . . . . . . . . Interference 4 | . . . 4 . . . . . . . . . . . . . . . . . Damage (minor) 2 | . . . 2 . . . . . . . . . . . . . . . . . Siege Activations . | . . . . . . . . . . . . . . . . . . . . . Martial Activations . | . . . . . . . . . . . . . . . . . . . . . Shielding Activations . | . . . . . . . . . . . . . . . . . . . . . Robots Disrupted . | . . . . . . . . . . . . . . . . . . . . . Combat Hostiles . | . . . . . . . . . . . . . . . . . . . . . Robots Corrupted 1 | . 1 . . . . . . . . . . . . . . . . . . . Combat Hostiles 1 | . 1 . . . . . . . . . . . . . . . . . . . Parts Fried 5 | 1 2 . . . . . . . . . . . . . . . . . . 2 Impact Corruptions . | . . . . . . . . . . . . . . . . . . . . . Robots Melted 1 | . . . 1 . . . . . . . . . . . . . . . . . Combat Hostiles 1 | . . . 1 . . . . . . . . . . . . . . . . . Parts Melted 5 | . . . 4 . . . . . . . . . . . . . . . . 1 Heat Transferred 2402 | . 400 50 1802 . . . . . . . . . . . . . . . . 150 Parts Sabotaged . | . . . . . . . . . . . . . . . . . . . . . Parts Stolen . | . . . . . . . . . . . . . . . . . . . . . Parts Stripped . | . . . . . . . . . . . . . . . . . . . . . Power Chain Reactions 3 | . 2 . . . . . . . . . . . . . . . . . . 1 Alert | -11 -10 -10 -9 -9 -9 -8 -8 -7 -7 -7 -7 -5 -5 -5 -5 -4 -4 -3 -2 -1 ------- Run | Yrd Mat Min Mat Min Exi Min Mat Fac Sto Gar Rec Fac Upp Upp War Pro Fac Res Res Acc Maximum Alert Level 3 | . 1 . 1 . . . 3 1 . 1 . . . . . . . . . 2 Low Security (%) 65 | 100 68 100 33 100 . 100 43 60 100 39 100 100 . . . . 100 100 100 64 Level 1 27 | . 31 . 66 . . . 28 40 . 60 . . . . . . . . . 26 Level 2 7 | . . . . . . . 26 . . . . . . . . . . . . 8 Level 3 . | . . . . . . . . . . . . . . . . . . . . . Level 4 . | . . . . . . . . . . . . . . . . . . . . . Level 5 . | . . . . . . . . . . . . . . . . . . . . . High Security . | . . . . . . . . . . . . . . . . . . . . . Max Security . | . . . . . . . . . . . . . . . . . . . . . Peak Influence 715 | 5 268 109 300 95 . 85 715 324 86 279 129 147 . . . . 167 60 37 686 Initial 324 | . . 51 . 95 . . 5 324 16 50 118 28 . . . . 44 . 24 . Average 153 | . 128 49 197 55 . 53 272 172 32 200 93 67 . . . . 36 8 7 167 Influence Increases 5491 | 5 570 88 750 150 . 85 1277 30 211 254 31 194 60 . . 120 319 99 97 1151 Destroy 0b10 Robot/C 2080 | . 320 60 420 100 . 60 640 . 60 60 . . . . . . 60 . . 300 Destroy 0b10 Robot/NC 265 | 5 45 . 45 . . . 65 5 20 . 15 5 . . . . . . 20 40 Destroy Leader 440 | . 66 10 110 20 . 10 156 2 10 10 . . . . . . 20 . 2 24 Allied During Kill 24 | . . . . . . . . . 6 . . . . . . . 18 . . . Successful Hack 189 | . 9 . 23 . . . 38 8 20 . 14 4 . . . . 28 5 . 40 Disable Machine 315 | . 45 . 60 . . . 120 . 30 15 . . . . . . 30 . . 15 Anti-Garrison Action 50 | . . . . . . . . . . 50 . . . . . . . . . . Destroy Structure 673 | . 25 18 47 . . 15 198 15 35 44 2 20 . . . . 58 34 30 132 Partial Spotted 75 | . . . . . . . . . . 15 . . . . . . 30 . . 30 Lose Combat Pursuer 1380 | . 60 . 45 30 . . 60 . 30 60 . 165 60 . . 120 75 60 45 570 Influence Decreases 4805 | 5 438 220 505 330 65 70 579 707 170 67 226 101 171 31 20 50 389 55 141 465 Entered New Map 1067 | . . 81 . 150 65 . 10 389 20 27 146 41 61 11 20 . 26 . 20 . Time Decay 2970 | 5 358 129 501 180 . 70 469 318 110 . 80 50 110 20 . 50 166 55 121 178 Lost Part 474 | . 80 10 4 . . . 100 . . 40 . 10 . . . . . . . 230 Lost Ally 130 | . . . . . . . . . 40 . . . . . . . 90 . . . Purge Threat 164 | . . . . . . . . . . . . . . . . . 107 . . 57 Squads Dispatched 54 | . 3 . 4 . . . 13 7 3 . . 4 . . . . 10 . 1 9 Investigation 19 | . 1 . 2 . . . 4 2 . . . 2 . . . . 6 . 1 1 Extermination 7 | . . . . . . . . 1 . . . 1 . . . . 3 . . 2 Reinforcement 17 | . 2 . 2 . . . 5 4 . . . 1 . . . . . . . 3 Assault 3 | . . . . . . . 1 . 2 . . . . . . . . . . . Garrison 8 | . . . . . . . 3 . 1 . . . . . . . 1 . . 3 Intercept . | . . . . . . . . . . . . . . . . . . . . . Searches Triggered . | . . . . . . . . . . . . . . . . . . . . . Construction Impeded 4 | . . . 1 . . . 1 . . . . . . . . . . . . 2 Haulers Reinforced 1 | . . . . . . . . . . . . . . . . . . . . 1 Active Scanning Responses . | . . . . . . . . . . . . . . . . . . . . . Cargo Convoy Interrupts . | . . . . . . . . . . . . . . . . . . . . . Stealth | -11 -10 -10 -9 -9 -9 -8 -8 -7 -7 -7 -7 -5 -5 -5 -5 -4 -4 -3 -2 -1 --------- Run | Yrd Mat Min Mat Min Exi Min Mat Fac Sto Gar Rec Fac Upp Upp War Pro Fac Res Res Acc Distress Signals 28 | . 2 . 5 . . . 3 . 1 . . . . . . . 1 1 11 4 Communications Jammed . | . . . . . . . . . . . . . . . . . . . . . Distress Signals . | . . . . . . . . . . . . . . . . . . . . . Times Spotted 267 | . 28 3 38 7 . 3 54 4 7 8 . 12 4 . . 7 13 10 9 60 Peak Tracking Total 29 | . 5 3 4 4 . 3 7 4 3 6 . 11 4 . . 6 7 6 3 29 Tactical Retreats 39 | . 2 . 1 2 . . 4 . 1 3 . 4 2 . . 5 2 1 2 10 Traps | -11 -10 -10 -9 -9 -9 -8 -8 -7 -7 -7 -7 -5 -5 -5 -5 -4 -4 -3 -2 -1 ------- Run | Yrd Mat Min Mat Min Exi Min Mat Fac Sto Gar Rec Fac Upp Upp War Pro Fac Res Res Acc Traps Triggered 17 | . . . 3 . . . 2 . . 7 . 1 . . . . 3 . . 1 Indirectly . | . . . . . . . . . . . . . . . . . . . . . Trap Hack Attempts . | . . . . . . . . . . . . . . . . . . . . . Triggered . | . . . . . . . . . . . . . . . . . . . . . Disarmed . | . . . . . . . . . . . . . . . . . . . . . Reprogrammed . | . . . . . . . . . . . . . . . . . . . . . Reused . | . . . . . . . . . . . . . . . . . . . . . Traps Extracted . | . . . . . . . . . . . . . . . . . . . . . Installed . | . . . . . . . . . . . . . . . . . . . . . Triggered . | . . . . . . . . . . . . . . . . . . . . . Machines | -11 -10 -10 -9 -9 -9 -8 -8 -7 -7 -7 -7 -5 -5 -5 -5 -4 -4 -3 -2 -1 ---------- Run | Yrd Mat Min Mat Min Exi Min Mat Fac Sto Gar Rec Fac Upp Upp War Pro Fac Res Res Acc Machines Disabled 22 | . 3 . 4 . . . 8 . 2 2 . . . . . . 2 . . 1 Max in Single Turn 2 | . 1 . 1 . . . 2 . 1 1 . . . . . . . . . 1 Garrison Access 2 | . . . . . . . . . . . . . . . . . . . 1 1 Garrison Relay 1 | . . . . . . . . . . 1 . . . . . . . . . . Machines Repaired . | . . . . . . . . . . . . . . . . . . . . . Machines Dismantled . | . . . . . . . . . . . . . . . . . . . . . Machines Sabotaged . | . . . . . . . . . . . . . . . . . . . . . Overloaded Fab Kills . | . . . . . . . . . . . . . . . . . . . . . Hacking | -11 -10 -10 -9 -9 -9 -8 -8 -7 -7 -7 -7 -5 -5 -5 -5 -4 -4 -3 -2 -1 --------- Run | Yrd Mat Min Mat Min Exi Min Mat Fac Sto Gar Rec Fac Upp Upp War Pro Fac Res Res Acc Machines Accessed 67 | . 5 . 8 . 2 . 11 6 3 1 6 2 . . 6 . 9 3 1 4 Terminals 34 | . 3 . 4 . . . 8 3 2 1 3 1 . . . . 4 2 1 2 Fabricators 2 | . . . . . . . . 1 . . . . . . . . 1 . . . Repair Stations 5 | . 1 . 1 . . . 1 . . . . . . . . . 1 1 . . Recycling Units 9 | . 1 . 2 . . . 1 1 . . 3 . . . . . 1 . . . Scanalyzers 3 | . . . 1 . . . 1 1 . . . . . . . . . . . . Garrison Access 6 | . . . . . . . . . 1 . . 1 . . . . 2 . . 2 Total Hacks 189 | . 13 . 27 . 6 . 28 21 4 1 10 9 . . 9 . 25 18 5 13 Successful 121 | . 6 . 15 . 6 . 14 13 3 1 7 4 . . 9 . 16 16 3 8 Failed 68 | . 7 . 12 . . . 14 8 1 . 3 5 . . . . 9 2 2 5 Catastrophic 11 | . 2 . 2 . . . 3 1 . . . . . . . . 3 . . . Database Lockouts . | . . . . . . . . . . . . . . . . . . . . . Manual 88 | . 8 . 12 . 1 . 15 7 . . 6 9 . . . . 14 6 3 7 Terminals 102 | . 8 . 10 . . . 15 10 3 1 6 6 . . . . 14 16 5 8 Fabricators 4 | . . . . . . . . 2 . . . . . . . . 2 . . . Repair Stations 18 | . 3 . 5 . . . 3 . . . . . . . . . 5 2 . . Recycling Units 18 | . 2 . 6 . . . 2 2 . . 4 . . . . . 2 . . . Scanalyzers 21 | . . . 6 . . . 8 7 . . . . . . . . . . . . Garrison Access 11 | . . . . . . . . . 1 . . 3 . . . . 2 . . 5 Terminal Hacks 65 | . 2 . 1 . 6 . 4 3 2 1 3 4 . . 9 . 7 14 2 7 Record 24 | . . . . . 5 . . 1 . . . . . . 7 . . 9 2 . Part Schematic 4 | . . . . . . . 2 . 1 . 1 . . . . . . . . . Robot Analysis 4 | . 2 . . . . . 1 . . . . 1 . . . . . . . . Prototype ID Bank 2 | . . . . . . . . . . . . . . . . . 1 . . 1 Open Door 3 | . . . . . . . . . 1 . . . . . 2 . . . . . Open DSF 1 | . . . . . . . . . . . . . . . . . 1 . . . Level Access Points 4 | . . . . . . . . . . . 1 . . . . . 1 1 . 1 Branch Access Points 3 | . . . . . . . . . . . 1 1 . . . . . . . 1 Terminal Index 4 | . . . 1 . . . . . . . . 1 . . . . . 1 . 1 Fabricator Index 3 | . . . . . . . . . . . . 1 . . . . 1 1 . . Garrison Index 1 | . . . . . . . . . . . . . . . . . . 1 . . Unreport Threat 3 | . . . . . . . . . . . . . . . . . 1 1 . 1 Recall Investigation 2 | . . . . . . . . 1 . . . . . . . . 1 . . . Recall Reinforcements 1 | . . . . . . . . . . . . . . . . . . . . 1 Recall Assault 1 | . . . . . . . . . . . . . . . . . . . . 1 Hauler Manifests 2 | . . . . . . . 1 1 . . . . . . . . . . . . Zone Layout 1 | . . . . . . . . . . . . . . . . . 1 . . . Patrol Navigation 1 | . . . . . . . . . . 1 . . . . . . . . . . Proto ID Catalog 1 | . . . . . 1 . . . . . . . . . . . . . . . Fabricator Hacks 4 | . . . . . . . . 2 . . . . . . . . 2 . . . Load Schematic 2 | . . . . . . . . 1 . . . . . . . . 1 . . . Build 2 | . . . . . . . . 1 . . . . . . . . 1 . . . Repair Station Hacks 13 | . 2 . 4 . . . 2 . . . . . . . . . 3 2 . . Scan Component 7 | . 1 . 2 . . . 1 . . . . . . . . . 2 1 . . Repair 6 | . 1 . 2 . . . 1 . . . . . . . . . 1 1 . . Recycling Unit Hacks 9 | . 1 . 1 . . . 1 1 . . 4 . . . . . 1 . . . Retrieve Components 9 | . 1 . 1 . . . 1 1 . . 4 . . . . . 1 . . . Scanalyzer 19 | . . . 6 . . . 6 7 . . . . . . . . . . . . Insert Component 10 | . . . 3 . . . 3 4 . . . . . . . . . . . . Analyze 9 | . . . 3 . . . 3 3 . . . . . . . . . . . . Garrison Access Hacks 2 | . . . . . . . . . 1 . . . . . . . . . . 1 Unlock Access 1 | . . . . . . . . . 1 . . . . . . . . . . . Seal Access 1 | . . . . . . . . . . . . . . . . . . . . 1 Unauthorized Hacks 9 | . 1 . 3 . . . 1 . . . . . . . . . 3 . 1 . Terminals 7 | . 1 . 3 . . . 1 . . . . . . . . . 1 . 1 . Assimilate 2 | . . . 1 . . . . . . . . . . . . . 1 . . . Botnet 1 | . . . . . . . . . . . . . . . . . . . 1 . Operators 4 | . 1 . 2 . . . 1 . . . . . . . . . . . . . Fabricators . | . . . . . . . . . . . . . . . . . . . . . Repair Stations . | . . . . . . . . . . . . . . . . . . . . . Recycling Units . | . . . . . . . . . . . . . . . . . . . . . Scanalyzers . | . . . . . . . . . . . . . . . . . . . . . Garrison Access 2 | . . . . . . . . . . . . . . . . . 2 . . . Reprogram 2 | . . . . . . . . . . . . . . . . . 2 . . . Data Cores Recovered . | . . . . . . . . . . . . . . . . . . . . . Used . | . . . . . . . . . . . . . . . . . . . . . Hacking Detections 42 | . 4 . 7 . . . 8 6 2 . 1 2 . . . . 7 1 1 3 Full Trace Events 15 | . 2 . 2 . . . 2 2 . . . 1 . . . . 4 . 1 1 Feedback Events 2 | . . . 1 . . . 1 . . . . . . . . . . . . . Corruption 2 | . . . 1 . . . 1 . . . . . . . . . . . . . Feedback Blocked . | . . . . . . . . . . . . . . . . . . . . . Robot Schematics Acquired . | . . . . . . . . . . . . . . . . . . . . . Robots Built . | . . . . . . . . . . . . . . . . . . . . . Authchips . | . . . . . . . . . . . . . . . . . . . . . Time . | . . . . . . . . . . . . . . . . . . . . . Total Robot Build Rating . | . . . . . . . . . . . . . . . . . . . . . Part Schematics Acquired 10 | . . . 3 . . . 3 2 1 . 1 . . . . . . . . . Parts Built 2 | . . . . . . . . 1 . . . . . . . . 1 . . . Authchips . | . . . . . . . . . . . . . . . . . . . . . Time 168 | . . . . . . . . 73 . . . . . . . . 95 . . . Total Part Build Rating 8 | . . . . . . . . 3 . . . . . . . . 5 . . . Parts Repaired 6 | . 1 . 2 . . . 1 . . . . . . . . . 1 1 . . Time 194 | . 26 . 52 . . . 32 . . . . . . . . . 28 56 . . Parts Recycled . | . . . . . . . . . . . . . . . . . . . . . Recycled Matter . | . . . . . . . . . . . . . . . . . . . . . Retrieved Matter . | . . . . . . . . . . . . . . . . . . . . . Retrieved Components 30 | . 10 . 9 . . . 3 3 . . 2 . . . . . 3 . . . Parts Scanalyzed 9 | . . . 3 . . . 3 3 . . . . . . . . . . . . Part Schematics Acquired 7 | . . . 3 . . . 2 2 . . . . . . . . . . . . Parts Damaged . | . . . . . . . . . . . . . . . . . . . . . Bothacking | -11 -10 -10 -9 -9 -9 -8 -8 -7 -7 -7 -7 -5 -5 -5 -5 -4 -4 -3 -2 -1 ------------ Run | Yrd Mat Min Mat Min Exi Min Mat Fac Sto Gar Rec Fac Upp Upp War Pro Fac Res Res Acc Used RIF Installer . | . . . . . . . . . . . . . . . . . . . . . Robots Hacked . | . . . . . . . . . . . . . . . . . . . . . Non-combat . | . . . . . . . . . . . . . . . . . . . . . Combat . | . . . . . . . . . . . . . . . . . . . . . Robot Hacks Applied . | . . . . . . . . . . . . . . . . . . . . . Relay Couplers Released 5 | . . . . . . . . . . 3 . . . . . . . . 2 . Machine Destruction 5 | . . . . . . . . . . 3 . . . . . . . . 2 . Fabnet Peak Effective % . | . . . . . . . . . . . . . . . . . . . . . Robots Rewired . | . . . . . . . . . . . . . . . . . . . . . Allies Hacked . | . . . . . . . . . . . . . . . . . . . . . Hacks Repelled . | . . . . . . . . . . . . . . . . . . . . . Allies | -11 -10 -10 -9 -9 -9 -8 -8 -7 -7 -7 -7 -5 -5 -5 -5 -4 -4 -3 -2 -1 -------- Run | Yrd Mat Min Mat Min Exi Min Mat Fac Sto Gar Rec Fac Upp Upp War Pro Fac Res Res Acc Total Allies 9 | . . . . . . . . . 2 . . . . . . . 7 . . . Largest Group 4 | . . . . . . . . . 2 . . . . . . . 4 . . . Highest-Rated Group 188 | . . . . . . . . . 62 . . . . . . . 188 . . . Highest-Rated Ally 56 | . . . . . . . . . 31 . . . . . . . 56 . . . Initial Warlord ECA Mod 1 | . . . . . . . . . . . 1 . . . . . . . . . Total Orders . | . . . . . . . . . . . . . . . . . . . . . Ally Attacks 24 | . . . . . . . . . 9 . . . . . . . 15 . . . Total Damage 795 | . . . . . . . . . 149 . . . . . . . 646 . . . Kills 3 | . . . . . . . . . . . . . . . . . 3 . . . Allies Corrupted . | . . . . . . . . . . . . . . . . . . . . . Allies Melted . | . . . . . . . . . . . . . . . . . . . . . Intel | -11 -10 -10 -9 -9 -9 -8 -8 -7 -7 -7 -7 -5 -5 -5 -5 -4 -4 -3 -2 -1 ------- Run | Yrd Mat Min Mat Min Exi Min Mat Fac Sto Gar Rec Fac Upp Upp War Pro Fac Res Res Acc Active Infowar (turns) 2547 | . . . . . . . . . . . . . . . 376 230 788 293 478 382 Decoding 2547 | . . . . . . . . . . . . . . . 376 230 788 293 478 382 Robot Analysis Total 4 | . 2 . . . . . 1 . . . . 1 . . . . . . . . Derelict Logs Recovered 5 | . . . . 1 . . . . . . . . 3 1 . . . . . . Drone Launches . | . . . . . . . . . . . . . . . . . . . . . Drone Recoveries . | . . . . . . . . . . . . . . . . . . . . . Decoded 0b10 Intel 31 | . . . . . . . . . . . . . . . . . 9 5 8 9 Traps 16 | . . . . . . . . . . . . . . . . . 9 3 . 4 Emergency Access 13 | . . . . . . . . . . . . . . . . . . 2 6 5 Garrisons 1 | . . . . . . . . . . . . . . . . . . . 1 . Exits 1 | . . . . . . . . . . . . . . . . . . . 1 . Exploration | -11 -10 -10 -9 -9 -9 -8 -8 -7 -7 -7 -7 -5 -5 -5 -5 -4 -4 -3 -2 -1 ------------- Run | Yrd Mat Min Mat Min Exi Min Mat Fac Sto Gar Rec Fac Upp Upp War Pro Fac Res Res Acc Turns Passed 10779 | 78 1280 317 1472 363 378 143 2391 700 228 215 165 115 228 54 447 230 788 293 478 416 Spaces Moved 11941 | 38 626 184 576 216 234 88 1019 896 223 526 482 277 865 215 1036 806 1453 534 785 862 Core 32 | 3 2 . . . . . . . . . . . . . . . . . . 27 Treads 2761 | 35 417 184 576 216 234 88 1011 . . . . . . . . . . . . . Legs 163 | . 163 . . . . . . . . . . . . . . . . . . . Wheels 44 | . 44 . . . . . . . . . . . . . . . . . . . Hover . | . . . . . . . . . . . . . . . . . . . . . Flight 8941 | . . . . . . . 8 896 223 526 482 277 865 215 1036 806 1453 534 785 835 Fastest Speed 18 | 50 90 160 160 160 160 160 29 26 26 26 26 23 25 25 25 25 21 21 20 18 Average Speed 57 | 151 145 160 161 160 160 160 160 26 26 26 26 23 25 25 25 25 23 24 22 21 Slowest Speed 635 | 160 190 160 240 160 160 160 635 29 26 26 26 25 25 25 25 25 25 25 25 100 Overloaded Moves . | . . . . . . . . . . . . . . . . . . . . . Propulsion Burnouts . | . . . . . . . . . . . . . . . . . . . . . Robots Hopped 4 | . . . . . . . . . . . . . . . . . 1 1 1 1 Potential Cave-ins 6 | . . . . . . . . . . . . . . . . 4 . . . 2 Cave-ins Triggered . | . . . . . . . . . . . . . . . . . . . . . Exploration Rate (%) 46 | 5 88 51 60 49 60 35 74 15 18 49 72 10 93 38 92 80 24 14 22 18 Regions Visited 20 Branch Regions 10 Pre-discovered Areas 3 | . . . . 1 1 . . . . . . . 1 . . . . . . . Known Exits Taken 7 | . . . . . . . . . 1 . 1 1 . . . 1 1 1 1 . Unknown Exits Taken 12 | 1 1 1 1 1 1 1 1 1 . . . . 1 1 1 . . . . . Scrap Searched 12 | . . 1 . 1 . . . . . . . . 4 1 . 5 . . . . Spaces Dug 226 | . . . 9 . . . 12 16 3 . 2 10 . . . 100 14 17 10 33 Terrain Destroyed 702 | . 20 26 53 . . 15 225 16 34 55 2 10 . . . 138 14 17 10 67 Melee 103 | . . . . . . . 12 16 3 . 2 10 . . . 2 14 17 10 17 Projectile 10 | . . . 10 . . . . . . . . . . . . . . . . . AOE 589 | . 20 26 43 . . 15 213 . 31 55 . . . . . 136 . . . 50 Terrain Rammed . | . . . . . . . . . . . . . . . . . . . . . Walls Destroyed . | . . . . . . . . . . . . . . . . . . . . . Machines Disabled . | . . . . . . . . . . . . . . . . . . . . . Actions | -11 -10 -10 -9 -9 -9 -8 -8 -7 -7 -7 -7 -5 -5 -5 -5 -4 -4 -3 -2 -1 --------- Run | Yrd Mat Min Mat Min Exi Min Mat Fac Sto Gar Rec Fac Upp Upp War Pro Fac Res Res Acc Total 15232 | 50 911 196 975 225 240 90 1684 1333 374 584 510 307 874 214 1225 821 1866 666 1048 1039 Wait 2512 | . 199 2 264 . . . 505 399 128 21 10 11 3 . 175 4 376 108 224 83 Move 11912 | 37 625 183 575 215 233 87 1018 895 222 524 481 276 864 214 1035 805 1450 531 782 860 Hop 4 | . . . . . . . . . . . . . . . . . 1 1 1 1 Pick Up 64 | 3 11 1 10 1 . . 16 4 2 . 6 1 . . 2 . 1 . 1 5 Fast Attach 80 | 7 7 . 17 1 1 . 7 4 3 . 2 2 5 . 4 . 4 4 8 4 Attach 51 | . 6 1 5 . 1 1 11 3 1 3 1 1 . . . 1 1 1 1 13 Detach 23 | . 1 . 3 . 2 1 3 1 . . 1 1 . . . 1 1 1 . 7 Swap 43 | . 5 2 13 . . . 10 2 2 1 . 3 . . . . 2 1 . 2 Drop 93 | . 7 . 15 3 3 . 23 5 4 . 2 1 2 . 9 . 3 2 6 8 Fire 195 | 3 49 7 72 5 . 1 30 . 3 6 . . . . . 8 . . . 11 Melee 198 | . . . 1 . . . 61 20 9 5 7 11 . . . 2 16 17 25 24 Ram 3 | . . . . . . . . . . . . . . . . . . . . 3 Kick 1 | . 1 . . . . . . . . . . . . . . . . . . . Crush . | . . . . . . . . . . . . . . . . . . . . . Escape Stasis 53 | . . . . . . . . . . 24 . . . . . . 11 . . 18 Rewire . | . . . . . . . . . . . . . . . . . . . . . Trap . | . . . . . . . . . . . . . . . . . . . . . Miscellaneous . | . . . . . . . . . . . . . . . . . . . . . Route ------- -11/Scrapyard -10/Materials (discovered 3 exits: *Mat x2 / [*Min]) -10/Mines -9/Materials -9/Mines -9/Exiles -8/Mines -8/Materials (discovered 3 exits: *Fac x3) -7/Factory -7/Storage -7/Garrison (discovered 2 exits: *Rec x2) -7/Recycling -5/Factory (discovered 2 exits: *Upp x2) -5/Upper Caves -5/Upper Caves -5/Warlord -4/Proximity Caves -4/Factory (discovered 4 exits: *Res x4) -3/Research (discovered 3 exits: *Res x3) -2/Research (discovered 2 exits: *Acc / Qua) -1/Access (discovered 2 exits: Sur / Com) History --------- Turn | Location | Event 16 | -11/Scrapyard | Discovered new exit (range 14) 79 | -11/Scrapyard | Entered Materials 315 | -10/Materials | Build established: Mutant 578 | -10/Materials | Discovered new exit (range 16) 638 | -10/Materials | Discovered new exit (range 15) 749 | -10/Materials | Lost 7 parts (1p2n1u3w) 827 | -10/Materials | Repaired Grenade Launcher? 1078 | -10/Materials | Build established: Scavenger-Mutant 1154 | -10/Materials | Discovered new exit (range 13) 1359 | -10/Materials | Entered Mines 1435 | -10/Mines | Received a Rocket Launcher from a helpful Derelict 1655 | -10/Mines | Discovered new exit (range 14) 1676 | -10/Mines | Entered Materials 1676 | -9/Materials | Evolved 2 slots: Propulsion x1, Utility x1 1697 | -9/Materials | Build established: Mutant 2284 | -9/Materials | Discovered new exit (range 7) 2368 | -9/Materials | Build established: Scavenger-Mutant 2827 | -9/Materials | Repaired Core Shielding 2859 | -9/Materials | Repaired Ion Engine 3148 | -9/Materials | Entered Mines 3218 | -9/Mines | Build established: Mutant 3462 | -9/Mines | Learned location of Zion (-7) 3503 | -9/Mines | Deemed a non-threat by the Exiles lab entrance 3505 | -9/Mines | Discovered new exit (range 5) 3511 | -9/Mines | Entered Exiles 3560 | -9/Exiles | Met 8R-AWN 3582 | -9/Exiles | Met EX-HEX 3630 | -9/Exiles | Met EX-BIN 3672 | -9/Exiles | Aligned with FarCom system 3673 | -9/Exiles | Given EX-Vault access code 3728 | -9/Exiles | Opened EX-Vault 3739 | -9/Exiles | Found Longsword +1 3769 | -9/Exiles | Warned to stay clear of 0b10 Research branches 3814 | -9/Exiles | Met EX-DEC 3817 | -9/Exiles | Build established: Scavenger-Mutant 3873 | -9/Exiles | Discovered new exit (range 10) 3889 | -9/Exiles | Left Exiles lab with Longsword +1 3889 | -9/Exiles | Entered Mines 4005 | -8/Mines | Discovered new exit (range 14) 4032 | -8/Mines | Entered Materials 4032 | -8/Materials | Evolved 2 slots: Utility x2 4518 | -8/Materials | Discovered new exit (range 9) 4539 | -8/Materials | Destroyed 8 combat bots 4959 | -8/Materials | Discovered new exit (range 9) 5146 | -8/Materials | Build established: Mutant 5430 | -8/Materials | Garrison activated, responded to threat 5599 | -8/Materials | Repaired Rocket Launcher 6032 | -8/Materials | First assault squad dispatched 6356 | -8/Materials | Discovered new exit (range 8) 6400 | -8/Materials | Core integrity fell below 50% 6423 | -8/Materials | Entered Factory 6423 | -7/Factory | Evolved 2 slots: Propulsion x1, Utility x1 6427 | -7/Factory | Lost 9 parts (1p3n2u3w) 6704 | -7/Factory | Build established: Hacker-Sprinter 7001 | -7/Factory | Discovered new exit (range 10) 7083 | -7/Factory | Fabricated Hacking Suite (x1) 7123 | -7/Factory | Entered Storage 7139 | -7/Storage | Met a pair of Derelict thieves 7333 | -7/Storage | Garrison activated, responded to threat 7337 | -7/Storage | Identified exit to Garrison 7351 | -7/Storage | Entered Garrison 7374 | -7/Garrison | Triggered checkpoint 7395 | -7/Garrison | Triggered checkpoint 7398 | -7/Garrison | Garrison Relay disabled 7521 | -7/Garrison | Discovered new exit (range 11) 7524 | -7/Garrison | Attempted to access garrison exit controls, blocked by remote lockdown 7531 | -7/Garrison | Triggered checkpoint 7563 | -7/Garrison | Discovered new exit (range 8) 7566 | -7/Garrison | Entered Recycling 7592 | -7/Recycling | Lost 3 parts (1p1n1w) 7654 | -7/Recycling | Identified exit to Factory 7731 | -7/Recycling | Entered Factory 7731 | -5/Factory | Evolved 4 slots: Propulsion x1, Utility x2, Weapon x1 7736 | -5/Factory | Identified exit to Upper Caves 7846 | -5/Factory | Entered Upper Caves 7905 | -5/Upper Caves | Learned Factory stockpile data 7920 | -5/Upper Caves | Attracted the attention of an 0b10 checkpoint 7989 | -5/Upper Caves | Encountered a Warlord checkpoint 7989 | -5/Upper Caves | Learned Factory emergency access door positions 8072 | -5/Upper Caves | Discovered new exit (range 7) 8074 | -5/Upper Caves | Entered another Upper Caves area 8080 | -5/Upper Caves | Learned location of 1 exit from Proximity Caves 8127 | -5/Upper Caves | Discovered new exit (range 5) 8128 | -5/Upper Caves | Entered Warlord 8213 | -5/Warlord | Met Warlord 8238 | -5/Warlord | Warlord's base attacked by MAIN.C 8244 | -5/Warlord | Learned Research stockpile data 8244 | -5/Warlord | Learned Factory repair station intel 8244 | -5/Warlord | Learned Factory garrison access intel 8244 | -5/Warlord | Learned Research repair station intel 8260 | -5/Warlord | Found Prototype Launcher 8260 | -5/Warlord | Identified Vortex Catalyst Activator 8263 | -5/Warlord | Found Prototype Energy Cannon 8263 | -5/Warlord | Identified Vortex Driver 8300 | -5/Warlord | Opened side exit 8305 | -5/Warlord | Discovered new exit (range 10) 8575 | -5/Warlord | Entered Proximity Caves 8576 | -4/Proximity Caves | Identified exit to Factory 8606 | -4/Proximity Caves | Spotted B-86 Titan 8805 | -4/Proximity Caves | Entered Factory 8805 | -4/Factory | Evolved 2 slots: Propulsion x1, Utility x1 8808 | -4/Factory | Loaded intel: 6 repair station locations 8809 | -4/Factory | Loaded intel: 4 garrison access locations 9217 | -4/Factory | Repaired Field Propulsion Drive? 9325 | -4/Factory | Garrison activated, responded to threat 9487 | -4/Factory | Fabricated Imp. Hacking Suite? 9555 | -4/Factory | Identified exit to Research 9593 | -4/Factory | Entered Research 9593 | -3/Research | Evolved 2 slots: Power x1, Utility x1 9595 | -3/Research | Loaded intel: 4 repair station locations 9611 | -3/Research | Identified exit to Research 9629 | -3/Research | Build established: Wizard-Sprinter 9680 | -3/Research | Repaired Adv. Shield Generator 9886 | -3/Research | Entered another Research area 9886 | -2/Research | Warlord forces began assault on 0b10 9886 | -2/Research | Evolved 2 slots: Utility x2 9887 | -2/Research | Identified exit to Access 9983 | -2/Research | Spotted B-90 Cyclops 9996 | -2/Research | Research machine network offline 10115 | -2/Research | Identified exit to Quarantine 10157 | -2/Research | Found Prototype Device 10157 | -2/Research | Identified Thermal Barrier 10306 | -2/Research | Borebot progress halted 10321 | -2/Research | Borebot progress halted 10364 | -2/Research | Entered Access 10364 | -1/Access | Evolved 2 slots: Utility x2 10401 | -1/Access | Identified exit to Command 10401 | -1/Access | Identified exit to Surface 10421 | -1/Access | Found Gamma Bomb Array 10424 | -1/Access | Found Gamma Bomb Array 10536 | -1/Access | Found Gamma Bomb Array 10541 | -1/Access | Garrison activated, responded to threat 10695 | -1/Access | Lost 4 parts (4u) 10736 | -1/Access | Spotted B-99 Colossus 10757 | -1/Access | Core integrity fell below 50% 10770 | -1/Access | Core integrity fell below 20% 10780 | -1/Access | Destroyed by B-99 Colossus with Multirail Last Messages --------------- 10776_ Chain reaction triggered in Corrupted Lgt. Antimatter Reactor. 10776_ U-05 Engineer destroyed. 10776_ Xenon Bombardment Thruster melted. 10776_ S-43 Plague destroyed. 10776_ Destroyed Imp. Antigrav System. 10776_ Xenon Bombardment Thruster fried. 10776_ S-43 Plague destroyed. 10776_ ALERT: Construction progress impeded, dispatching reinforcements to local area. 10777_ P-80 Master misfires. 10778_ The unstable cave ceiling collapses. 10778_ 5 Matter crushed. 10779_ The unstable cave ceiling collapses. 10779_ Corrupted Hvy. Machine Gun crushed. 10780_ P-80 Master resets U-05 Engineer, system corruption cleaned. 10780_ U-05 Engineer destroyed. 10780_ Slug penetrates R-10 Processor. [Achievement: Achiever] Map ----- +----------------------------------------------------+ | ?????????????????????????????????????????????????? | | ?????????????????????????????????????????????????? | | ?????????????????????????????????????????????????? | | ?????????????????????????????????????????????????? | | ?????????????????????????????????????????????????? | | ?????????????????????????????????????????????????? | | ?????????????????????????????????????????????????? | | ?????????????????????????????????????????????????? | | ?????????????????????????????????????????????????? | | ?????????????????????????????????????????????????? | | ?????????????????????????????????????????????????? | | ?????????????????????????????????????????????????? | | ?????????????????????????????????????????????????? | | ?????????????????????????????????????????????????? | | ???????????????????????????????????>?????????????? | | ?????????????????????????????????????????????????? | | ?????????????????????????????????????????????????? | | ?????????????????????????????????????????????????? | | ?????????????????????????????????????????h???????? | | ?????????????????????????????????????????????????? | | ?????????????????????????????????????????????????? | | ?????????????????????????????????????????????????? | | ???????????????????????####??????????????????????? | | ??????????BB?????????### #??????????????????????? | | ??????????BB????????## =#????????????BB????????? | | ????????????????????# %@#####????????BB????????? | | ????????????????????## * p[ #??????????????????? | | ??????????#############; %#== #??????????????????? | | ??????????# """T" [%s*=##??????????????????? | | ??????????# """ """gg%=!#???????????????????? | | ??????????# =[[ ###???????????????????? | | ??????????# *=* ??????????????????????? | | ??????????# " * !%R* ?????????????????????? | | ??????????# """ %=![%[ ?????????????????????? | | ??????????# """ %! =*h ?????????????????????? | | ??????????# ! " ! !g%% ?????????????????????? | | ??????????# %%!h #????????????????????? | | ???????# / hh B== | ##????????????????????? | | ???????# ##########BB ??????????????????????? | | ???????#????????????#g# #??????????????????????? | | ????????????????????#g### ?????????????? ????????? | | ????????????????????# #???????????????? ?????????? | | ????????????????????#g################+########??? | | ????????????????????# = ??? | | ????????????????????# %! %% % ?? | | ????????????????????# ?? | | ????????????????????+ % " !! "??? | | ????????????????????# """ ]! ""?? | | ????????????????????# /G ]! "?? | | ????????????????????+ """ """ | +----------------------------------------------------+ Best States ------------- Heat Dissipation 52 Energy Generation 35 Energy Capacity 250 Matter Stores 300 Matter Capacity 300 Sight Range 16 Terrain Scan Density 110 Armor Coverage 375 Core Shielding 40 Weapon Shielding 66 Evasion (%) 76 Recoil Reduction 3 Offensive Hacking 64 Defensive Hacking 22 Authchip Count 5 Item Schematics ----------------- Hacking Suite | -9/Materials | Scanalyzed Rocket Launcher | -9/Materials | Scanalyzed Med. Storage Unit | -9/Materials | Scanalyzed System Shield | -8/Materials | Hacked Cesium-ion Thruster | -8/Materials | Scanalyzed Lgt. Nuclear Core | -8/Materials | Scanalyzed Mni. Grenade Launcher | -7/Factory | Scanalyzed Mic. Nuclear Core | -7/Factory | Scanalyzed Enh. Optical Array | -7/Storage | Hacked Imp. Hacking Suite | -7/Recycling | Hacked Robot Schematics ------------------ None Fabricated ------------ Hacking Suite | x1 | -7/Factory Imp. Hacking Suite | x1 | -4/Factory Repaired ---------- Grenade Launcher | 8% | -10/Materials Core Shielding | 16% | -9/Materials Ion Engine | 30% | -9/Materials Rocket Launcher | 5% | -8/Materials Field Propulsion Drive | 60% | -4/Factory Adv. Shield Generator | 32% | -3/Research Alien Tech Used ----------------- None Achievements -------------- A Powerful Ally? Achiever Dodgeball, But With Guns Explorer Hunted Challenges ------------ None Game ------ Seed SingularityTachyonTerminator Manual? 0 Play Time 02:52:05 Cumulative 15.9 hours Start 2025.07.01 @ 00:58:52 End 2025.07.01 @ 04:29:45 Sessions 1 Manual Loads 0 Difficulty Rogue Special Mode None Game No. 15 Rogue 15 Adventurer 0 Explorer 0 Win Type - Total 1 Types 1/0/0/0/0/0/0/0/0/0 Lore% 15 Gallery% 21 Achievement% 25 Wizard Run 0 Options --------- Layout 2 ASCII 0 Keyboard 0 Movement Mouse Keybinds 0 Fullscreen 1 Font 24/Smallcaps Map View 50x44 Zoom Use 0% Tactical HUD 1 Map Filters NONE Filters NONE Steam 1 RUN: 20c7a2c2-c5a5-4bd0-a715-b0c8d52bec09